fUST/lending_fUST_20240605
["ID","MTS","AMOUNT","RATE_DAILY","PERIOD"]
[328585679,1717573846585,-972.31,0.00021917,2]
[328585680,1717573846594,-972.31,0.00021917,2]
[328585681,1717573846602,-972.31,0.00021917,2]
[328585682,1717573846611,-972.31,0.00021917,2]
[328585683,1717573846620,-972.31,0.00021917,2]
[328585684,1717573846629,-972.31,0.00021917,2]
[328585685,1717573846641,-972.31,0.00021917,2]
[328585686,1717573846651,-972.31,0.00021917,2]
[328585687,1717573846659,-972.31,0.00021917,2]
[328585688,1717573846668,-500.0,0.00021917,2]
[328585689,1717573846678,-524.37903209,0.00021917,2]
[328585690,1717573846687,-500.0,0.00021917,2]
[328585691,1717573846696,-501.12923852,0.00021917,2]
[328585692,1717573846704,-507.7340198,0.00021917,2]
[328585693,1717573846714,-1006.49377425,0.00021917,2]
[328585694,1717573846726,-500.0,0.00021917,2]
[328585695,1717573846736,-500.0,0.00021917,2]
[328585696,1717573846745,-500.0,0.00021917,2]
[328585697,1717573846754,-500.97848826,0.00021917,2]
[328585698,1717573846763,-570.27442314,0.00021917,2]
[328585699,1717573846772,-506.80985209,0.00021917,2]
[328585700,1717573846781,-505.23438145,0.00021917,2]
[328585701,1717573846790,-514.87141347,0.00021917,2]
[328585702,1717573846799,-500.92388782,0.00021917,2]
[328585703,1717573846809,-500.0,0.00021917,2]
[328585704,1717573846818,-501.99441542,0.00021917,2]
[328585705,1717573846827,-507.55169295,0.00021917,2]
[328585706,1717573846836,-500.0,0.00021917,2]
[328585707,1717573846846,-500.68345296,0.00021917,2]
[328585708,1717573846855,-507.58203338,0.00021917,2]
[328585709,1717573846864,-500.69250885,0.00021917,2]
[328585710,1717573846873,-503.35425491,0.00021917,2]
[328585711,1717573846882,-510.27934533,0.00021917,2]
[328585712,1717573846892,-504.6332374,0.00021917,2]
[328585713,1717573846979,-504.47603068,0.00021917,2]
[328585714,1717573846989,-500.0,0.00021917,2]
[328585715,1717573846998,-500.52851286,0.00021917,2]
[328585716,1717573847007,-500.0,0.00021917,2]
[328585717,1717573847016,-503.16545659,0.00021917,2]
[328585718,1717573847025,-204.85384186,0.00021917,2]
[328585719,1717573847034,-504.78905676,0.00021917,2]
[328585720,1717573847043,-503.28081054,0.00021917,2]
[328585721,1717573847051,-500.82948429,0.00021917,2]
[328585722,1717573847060,-501.59208368,0.00021917,2]
[328585723,1717573847069,-500.66651679,0.00021917,2]
[328585724,1717573847078,-500.0,0.00021917,2]
[328585725,1717573847087,-502.12651786,0.00021917,2]
[328585726,1717573847096,-500.0,0.00021917,2]
[328585727,1717573847105,-508.48085206,0.00021917,2]
[328585728,1717573847114,-576.68909999,0.00021917,2]
[328585729,1717573847123,-500.0,0.00021917,2]
[328585730,1717573847132,-502.26547183,0.00021917,2]
[328585731,1717573847141,-500.0,0.00021917,2]
[328585732,1717573847150,-500.0,0.00021917,2]
[328585733,1717573847159,-500.0,0.00021917,2]
[328585734,1717573847169,-503.20825822,0.00021917,2]
[328585735,1717573847178,-500.0,0.00021917,2]
[328585736,1717573847187,-661.24,0.00021917,2]
[328585737,1717573847196,-500.0,0.00021917,2]
[328585738,1717573847205,-508.75253045,0.00021917,2]
[328585739,1717573847214,-502.0546942,0.00021917,2]
[328585740,1717573847224,-503.11947193,0.00021917,2]
[328585741,1717573847234,-522.17339448,0.00021917,2]
[328585742,1717573847243,-500.0,0.00021917,2]
[328585743,1717573847253,-504.5046362,0.00021917,2]
[328585744,1717573847262,-500.0,0.00021917,2]
[328585745,1717573847271,-500.0,0.00021917,2]
[328585746,1717573847280,-504.86013238,0.00021917,2]
[328585747,1717573847289,-500.0,0.00021917,2]
[328585748,1717573847299,-500.0,0.00021917,2]
[328585749,1717573847308,-500.0,0.00021917,2]
[328585750,1717573847317,-498.27458294,0.00021917,2]
[328585751,1717573847326,-578.58267239,0.00021917,2]
[328585752,1717573847335,-500.0,0.00021917,2]
[328585753,1717573847344,-500.0,0.00021917,2]
[328585754,1717573847354,-501.49327049,0.00021917,2]
[328585755,1717573847363,-703.26,0.00021917,2]
[328585756,1717573847372,-518.37326336,0.00021917,2]
[328585757,1717573847381,-500.0,0.00021917,2]
[328585758,1717573847391,-500.0,0.00021917,2]
[328585759,1717573847402,-501.92314806,0.00021917,2]
[328585760,1717573847411,-500.0,0.00021917,2]
[328585761,1717573847421,-509.14329482,0.00021917,2]
[328585762,1717573847430,-500.0,0.00021917,2]
[328585763,1717573847439,-507.21571356,0.00021917,2]
[328585764,1717573847448,-509.31529166,0.00021917,2]
[328585765,1717573847457,-500.0,0.00021917,2]
[328585766,1717573847466,-500.0,0.00021917,2]
[328585767,1717573847475,-500.58662845,0.00021917,2]
[328585768,1717573847484,-523.09637109,0.00021917,2]
[328585769,1717573847493,-500.0,0.00021917,2]
[328585770,1717573847503,-500.0,0.00021917,2]
[328585771,1717573847513,-501.46646239,0.00021917,2]
[328585772,1717573847522,-539.64404698,0.00021917,2]
[328585773,1717573847531,-500.0,0.00021917,2]
[328585774,1717573847541,-462.25,0.00021917,2]
[328585775,1717573847550,-501.57820878,0.00021917,2]
[328585776,1717573847559,-500.0,0.00021917,2]
[328585777,1717573847568,-500.0,0.00021917,2]
[328585778,1717573847577,-500.0,0.00021917,2]
[328585779,1717573847587,-500.0,0.00021917,2]
[328585780,1717573847596,-500.0,0.00021917,2]
[328585781,1717573847604,-500.0,0.00021917,2]
[328585782,1717573847614,-507.03455054,0.00021917,2]
[328585783,1717573847623,-505.12518097,0.00021917,2]
[328585784,1717573847632,-500.0,0.00021917,2]
[328585785,1717573847646,-500.0,0.00021917,2]
[328585786,1717573847655,-500.0,0.00021917,2]
[328585787,1717573847664,-503.05324406,0.00021917,2]
[328585788,1717573847673,-503.49007718,0.00021917,2]
[328585789,1717573847682,-500.0,0.00021917,2]
[328585790,1717573847691,-502.08840569,0.00021917,2]
[328585791,1717573847700,-500.0,0.00021917,2]
[328585792,1717573847710,-500.0,0.00021917,2]
[328585793,1717573847721,-500.0,0.00021917,2]
[328585794,1717573847730,-301.71667962,0.00021917,2]
[328585795,1717573847740,-500.0,0.00021917,2]
[328585796,1717573847749,-546.88175514,0.00021917,2]
[328585797,1717573847758,-504.75680313,0.00021917,2]
[328585798,1717573847767,-500.0,0.00021917,2]
[328585799,1717573847776,-500.0,0.00021917,2]
[328585800,1717573847785,-502.29713688,0.00021917,2]
[328585802,1717573847794,-500.0,0.00021917,2]
[328585804,1717573847803,-520.8,0.00021917,2]
[328585806,1717573847813,-500.68683523,0.00021917,2]
[328585808,1717573847822,-508.46754526,0.00021917,2]
[328585809,1717573847831,-500.0,0.00021917,2]
[328585810,1717573847840,-500.0,0.00021917,2]
[328585811,1717573847849,-501.71933874,0.00021917,2]
[328585812,1717573847858,-500.0,0.00021917,2]
[328585813,1717573847868,-500.0,0.00021917,2]
[328585814,1717573847877,-500.0,0.00021917,2]
[328585815,1717573847887,-500.0,0.00021917,2]
[328585816,1717573847896,-500.0,0.00021917,2]
[328585817,1717573847905,-500.0,0.00021917,2]
[328585818,1717573847914,-500.0,0.00021917,2]
[328585819,1717573847923,-503.61582582,0.00021917,2]
[328585820,1717573847933,-502.39173081,0.00021917,2]
[328585821,1717573847942,-502.73384805,0.00021917,2]
[328585823,1717573847951,-503.68260731,0.00021917,2]
[328585825,1717573847961,-505.0,0.00021917,2]
[328585827,1717573847969,-500.0,0.00021917,2]
[328585829,1717573847978,-500.0,0.00021917,2]
[328585831,1717573847987,-516.31252923,0.00021917,2]
[328585833,1717573847996,-548.79774588,0.00021917,2]
[328585835,1717573848005,-502.33582006,0.00021917,2]
[328585838,1717573848014,-500.0,0.00021917,2]
[328585840,1717573848023,-500.0,0.00021917,2]
[328585843,1717573848032,-500.0,0.00021917,2]
[328585845,1717573848040,-500.0,0.00021917,2]
[328585847,1717573848049,-500.0,0.00021917,2]
[328585849,1717573848058,-528.53108576,0.00021917,2]
[328585851,1717573848067,-500.0,0.00021917,2]
[328585853,1717573848076,-500.0,0.00021917,2]
[328585855,1717573848085,-502.81305426,0.00021917,2]
[328585857,1717573848094,-502.60980583,0.00021917,2]
[328585859,1717573848104,-369.28898894,0.00021917,2]
[328585861,1717573848113,-509.30863648,0.00021917,2]
[328585863,1717573848122,-501.57228912,0.00021917,2]
[328585865,1717573848132,-511.94201716,0.00021917,2]
[328585869,1717573848142,-500.0,0.00021917,2]
[328585871,1717573848151,-222.58324599,0.00021917,2]
[328585873,1717573848160,-500.0,0.00021917,2]
[328585874,1717573848169,-502.98882085,0.00021917,2]
[328585876,1717573848179,-500.0,0.00021917,2]
[328585879,1717573848188,-500.0,0.00021917,2]
[328585881,1717573848197,-502.06606891,0.00021917,2]
[328585884,1717573848206,-500.0,0.00021917,2]
[328585886,1717573848216,-512.46318445,0.00021917,2]
[328585888,1717573848224,-600.18561687,0.00021917,2]
[328585891,1717573848234,-503.15675931,0.00021917,2]
[328585892,1717573848243,-504.54700957,0.00021917,2]
[328585895,1717573848253,-514.7039189,0.00021917,2]
[328585896,1717573848261,-281.53809079,0.00021917,2]
[328585898,1717573848270,-500.0,0.00021917,2]
[328585900,1717573848280,-500.0,0.00021917,2]
[328585902,1717573848289,-500.0,0.00021917,2]
[328585905,1717573848299,-1002.79686411,0.00021917,2]
[328585907,1717573848308,-500.0,0.00021917,2]
[328585909,1717573848317,-502.24047773,0.00021917,2]
[328585911,1717573848326,-502.07092088,0.00021917,2]
[328585913,1717573848335,-500.0,0.00021917,2]
[328585915,1717573848344,-503.35024924,0.00021917,2]
[328585917,1717573848354,-502.36834302,0.00021917,2]
[328585919,1717573848363,-500.0,0.00021917,2]
[328585922,1717573848372,-500.0,0.00021917,2]
[328585925,1717573848382,-500.0,0.00021917,2]
[328585927,1717573848395,-500.0,0.00021917,2]
[328585929,1717573848404,-500.0,0.00021917,2]
[328585931,1717573848413,-500.0,0.00021917,2]
[328585933,1717573848422,-500.0,0.00021917,2]
[328585935,1717573848431,-500.0,0.00021917,2]
[328585937,1717573848440,-156.9862293,0.00021917,2]
[328585939,1717573848450,-541.75,0.00021917,2]
[328585941,1717573848459,-500.0,0.00021917,2]
[328585943,1717573848468,-505.26356369,0.00021917,2]
[328585945,1717573848476,-510.81224682,0.00021917,2]
[328585947,1717573848485,-508.25016259,0.00021917,2]
[328585948,1717573848494,-501.55225818,0.00021917,2]
[328585950,1717573848503,-500.0,0.00021917,2]
[328585952,1717573848513,-500.0,0.00021917,2]
[328585954,1717573848521,-500.0,0.00021917,2]
[328585956,1717573848530,-500.0,0.00021917,2]
[328585958,1717573848539,-503.9014635,0.00021917,2]
[328585960,1717573848550,-500.67584634,0.00021917,2]
[328585962,1717573848559,-502.58065457,0.00021917,2]
[328585964,1717573848568,-500.0,0.00021917,2]
[328585966,1717573848577,-500.0,0.00021917,2]
[328585968,1717573848586,-374.08845723,0.00021917,2]
[328585970,1717573848595,-500.0,0.00021917,2]
[328585972,1717573848604,-500.0,0.00021917,2]
[328585974,1717573848612,-502.42984099,0.00021917,2]
[328585976,1717573848621,-500.0,0.00021917,2]
[328585978,1717573848630,-500.0,0.00021917,2]
[328585980,1717573848642,-500.0,0.00021917,2]
[328585982,1717573848652,-500.0,0.00021917,2]
[328585984,1717573848660,-501.34729386,0.00021917,2]
[328585986,1717573848669,-782.35,0.00021917,2]
[328585987,1717573848678,-500.0,0.00021917,2]
[328585988,1717573848689,-200.07293881,0.00021917,2]
[328585990,1717573848698,-500.0,0.00021917,2]
[328585991,1717573848707,-500.0,0.00021917,2]
[328585993,1717573848715,-500.0,0.00021917,2]
[328585995,1717573848727,-500.0,0.00021917,2]
[328585997,1717573848737,-551.55625327,0.00021917,2]
[328585999,1717573848746,-500.0,0.00021917,2]
[328586001,1717573848755,-502.17094833,0.00021917,2]
[328586003,1717573848764,-500.0,0.00021917,2]
[328586005,1717573848773,-500.0,0.00021917,2]
[328586007,1717573848782,-502.19761693,0.00021917,2]
[328586009,1717573848790,-500.0,0.00021917,2]
[328586011,1717573848799,-500.0,0.00021917,2]
[328586013,1717573848808,-526.76651153,0.00021917,2]
[328586023,1717573848893,-500.0,0.00021917,2]
[328586025,1717573848902,-500.0,0.00021917,2]
[328586027,1717573848910,-500.0,0.00021917,2]
[328586029,1717573848919,-500.0,0.00021917,2]
[328586031,1717573848928,-478.64089977,0.00021917,2]
[328586033,1717573848937,-500.0,0.00021917,2]
[328586035,1717573848946,-505.88076613,0.00021917,2]
[328586037,1717573848955,-166.90503221,0.00021917,2]
[328586039,1717573848964,-500.0,0.00021917,2]
[328586041,1717573848973,-172.03604275,0.00021917,2]
[328586043,1717573848982,-502.59675767,0.00021917,2]
[328586045,1717573848991,-500.0,0.00021917,2]
[328586047,1717573849001,-500.0,0.00021917,2]
[328586049,1717573849009,-503.16221513,0.00021917,2]
[328586051,1717573849018,-500.0,0.00021917,2]
[328586053,1717573849028,-506.37759348,0.00021917,2]
[328586055,1717573849038,-155.222242,0.00021917,2]
[328586056,1717573849047,-155.222242,0.00021917,2]
[328586058,1717573849056,-155.222242,0.00021917,2]
[328586060,1717573849065,-155.222242,0.00021917,2]
[328586062,1717573849074,-155.222242,0.00021917,2]
[328586064,1717573849084,-155.222242,0.00021917,2]
[328586066,1717573849093,-155.222242,0.00021917,2]
[328586068,1717573849101,-155.222244,0.00021917,2]
[328586070,1717573849110,-500.0,0.00021917,2]
[328586072,1717573849118,-500.0,0.00021917,2]
[328586074,1717573849128,-223.84,0.00021917,2]
[328586075,1717573849138,-514.32032903,0.00021917,2]
[328586076,1717573849147,-500.0,0.00021917,2]
[328586078,1717573849156,-504.21550899,0.00021917,2]
[328586080,1717573849165,-501.42221471,0.00021917,2]
[328586082,1717573849174,-500.0,0.00021917,2]
[328586084,1717573849183,-507.49275625,0.00021917,2]
[328586085,1717573849192,-500.0,0.00021917,2]
[328586087,1717573849201,-500.0,0.00021917,2]
[328586089,1717573849210,-500.0,0.00021917,2]
[328586091,1717573849219,-500.34723037,0.00021917,2]
[328586093,1717573849229,-500.0,0.00021917,2]
[328586095,1717573849238,-500.0,0.00021917,2]
[328586097,1717573849247,-428.49829647,0.00021917,2]
[328586099,1717573849255,-932.32,0.00021917,2]
[328586101,1717573849264,-500.0,0.00021917,2]
[328586103,1717573849273,-386.17129556,0.00021917,2]
[328586105,1717573849282,-500.0,0.00021917,2]
[328586107,1717573849291,-164.69082607,0.00021917,2]
[328586109,1717573849299,-500.0,0.00021917,2]
[328586111,1717573849308,-378.402075,0.00021917,2]
[328586113,1717573849317,-378.402075,0.00021917,2]
[328586115,1717573849326,-378.402075,0.00021917,2]
[328586116,1717573849335,-378.402075,0.00021917,2]
[328586118,1717573849344,-378.402075,0.00021917,2]
[328586120,1717573849353,-500.0,0.00021917,2]
[328586122,1717573849362,-378.402075,0.00021917,2]
[328586124,1717573849371,-378.402075,0.00021917,2]
[328586126,1717573849380,-500.0,0.00021917,2]
[328586128,1717573849390,-378.40206854,0.00021917,2]
[328586131,1717573849400,-500.0,0.00021917,2]
[328586132,1717573849409,-500.0,0.00021917,2]
[328586134,1717573849418,-500.0,0.00021917,2]
[328586136,1717573849428,-500.0,0.00021917,2]
[328586138,1717573849438,-500.0,0.00021917,2]
[328586140,1717573849447,-500.0,0.00021917,2]
[328586142,1717573849456,-500.0,0.00021917,2]
[328586144,1717573849465,-500.0,0.00021917,2]
[328586146,1717573849474,-378.85886869,0.00021917,2]
[328586148,1717573849483,-505.31183883,0.00021917,2]
[328586150,1717573849493,-1047.57,0.00021917,2]
[328586152,1717573849502,-500.0,0.00021917,2]
[328586154,1717573849511,-500.0,0.00021917,2]
[328586156,1717573849520,-500.0,0.00021917,2]
[328586158,1717573849529,-500.0,0.00021917,2]
[328586160,1717573849538,-500.0,0.00021917,2]
[328586162,1717573849548,-500.0,0.00021917,2]
[328586164,1717573849557,-537.5,0.00021917,2]
[328586165,1717573849566,-502.66706592,0.00021917,2]
[328586166,1717573849574,-1284.8,0.00021917,2]
[328586168,1717573849584,-200.0,0.00021917,2]
[328586170,1717573849592,-500.0,0.00021917,2]
[328586172,1717573849601,-500.0,0.00021917,2]
[328586174,1717573849610,-500.0,0.00021917,2]
[328586176,1717573849619,-500.0,0.00021917,2]
[328586177,1717573849628,-503.08248034,0.00021917,2]
[328586179,1717573849638,-500.0,0.00021917,2]
[328586181,1717573849652,-500.0,0.00021917,2]
[328586183,1717573849661,-500.0,0.00021917,2]
[328586185,1717573849670,-263.89317518,0.00021917,2]
[328586187,1717573849679,-504.08624409,0.00021917,2]
[328586189,1717573849690,-500.0,0.00021917,2]
[328586191,1717573849699,-500.0,0.00021917,2]
[328586193,1717573849708,-1808.393506,0.00021917,2]
[328586195,1717573849718,-1808.393506,0.00021917,2]
[328586197,1717573849728,-1808.393506,0.00021917,2]
[328586199,1717573849737,-1808.393506,0.00021917,2]
[328586201,1717573849746,-500.0,0.00021917,2]
[328586203,1717573849755,-1808.393506,0.00021917,2]
[328586205,1717573849765,-500.0,0.00021917,2]
[328586207,1717573849774,-500.0,0.00021917,2]
[328586209,1717573849782,-1808.393506,0.00021917,2]
[328586211,1717573849791,-529.1,0.00021917,2]
[328586213,1717573849800,-1808.393506,0.00021917,2]
[328586215,1717573849809,-1808.393506,0.00021917,2]
[328586217,1717573849818,-500.0,0.00021917,2]
[328586219,1717573849827,-500.0,0.00021917,2]
[328586221,1717573849836,-500.0,0.00021917,2]
[328586223,1717573849844,-500.0,0.00021917,2]
[328586225,1717573849853,-500.0,0.00021917,2]
[328586227,1717573849862,-1525.03,0.00021917,2]
[328586229,1717573849870,-500.0,0.00021917,2]
[328586230,1717573849879,-500.0,0.00021917,2]
[328586232,1717573849888,-500.0,0.00021917,2]
[328586234,1717573849898,-361.421513,0.00021917,2]
[328586236,1717573849908,-361.421513,0.00021917,2]
[328586239,1717573849918,-361.421513,0.00021917,2]
[328586240,1717573849927,-361.421513,0.00021917,2]
[328586242,1717573849935,-509.00454722,0.00021917,2]
[328586244,1717573849944,-361.421513,0.00021917,2]
[328586246,1717573849953,-361.421513,0.00021917,2]
[328586248,1717573849962,-361.421513,0.00021917,2]
[328586249,1717573849971,-361.42152,0.00021917,2]
[328586250,1717573849980,-156.8001504,0.00021917,2]
[328586252,1717573849989,-500.0,0.00021917,2]
[328586254,1717573849998,-151.0,0.00021917,2]
[328586256,1717573850007,-151.0,0.00021917,2]
[328586258,1717573850016,-151.0,0.00021917,2]
[328586260,1717573850025,-151.0,0.00021917,2]
[328586262,1717573850034,-151.0,0.00021917,2]
[328586264,1717573850044,-500.0,0.00021917,2]
[328586266,1717573850053,-500.0,0.00021917,2]
[328586268,1717573850062,-500.0,0.00021917,2]
[328586270,1717573850070,-500.0,0.00021917,2]
[328586272,1717573850079,-500.0,0.00021917,2]
[328586274,1717573850088,-500.0,0.00021917,2]
[328586276,1717573850097,-3286.59,0.00021917,2]
[328586278,1717573850107,-500.0,0.00021917,2]
[328586280,1717573850116,-561.67606256,0.00021917,2]
[328586282,1717573850125,-503.1110389,0.00021917,2]
[328586284,1717573850134,-500.0,0.00021917,2]
[328586286,1717573850144,-500.0,0.00021917,2]
[328586288,1717573850153,-500.0,0.00021917,2]
[328586289,1717573850162,-500.0,0.00021917,2]
[328586290,1717573850171,-500.0,0.00021917,2]
[328586292,1717573850180,-500.0,0.00021917,2]
[328586294,1717573850191,-500.0,0.00021917,2]
[328586295,1717573850200,-503.55888098,0.00021917,2]
[328586296,1717573850209,-500.0,0.00021917,2]
[328586298,1717573850218,-1467.12,0.00021917,2]
[328586299,1717573850228,-500.0,0.00021917,2]
[328586301,1717573850237,-500.0,0.00021917,2]
[328586302,1717573850246,-151.0,0.00021917,2]
[328586304,1717573850255,-151.0,0.00021917,2]
[328586305,1717573850264,-500.0,0.00021917,2]
[328586306,1717573850273,-151.0,0.00021917,2]
[328586308,1717573850282,-151.0,0.00021917,2]
[328586309,1717573850291,-500.0,0.00021917,2]
[328586311,1717573850300,-151.0,0.00021917,2]
[328586312,1717573850309,-502.73051672,0.00021917,2]
[328586313,1717573850318,-500.0,0.00021917,2]
[328586314,1717573850327,-500.0,0.00021917,2]
[328586315,1717573850335,-500.0,0.00021917,2]
[328586316,1717573850345,-500.0,0.00021917,2]
[328586317,1717573850354,-500.0,0.00021917,2]
[328586318,1717573850363,-500.0,0.00021917,2]
[328586319,1717573850372,-500.0,0.00021917,2]
[328586320,1717573850381,-527.9,0.00021917,2]
[328586321,1717573850392,-614.49,0.00021917,2]
[328586322,1717573850401,-500.0,0.00021917,2]
[328586323,1717573850410,-500.0,0.00021917,2]
[328586324,1717573850419,-500.0,0.00021917,2]
[328586325,1717573850429,-714.09,0.00021917,2]
[328586326,1717573850438,-500.0,0.00021917,2]
[328586327,1717573850447,-503.29953996,0.00021917,2]
[328586328,1717573850456,-1675.2,0.00021917,2]
[328586329,1717573850465,-500.0,0.00021917,2]
[328586330,1717573850474,-500.0,0.00021917,2]
[328586331,1717573850483,-225.125861,0.00021917,2]
[328586332,1717573850492,-225.125861,0.00021917,2]
[328586333,1717573850501,-225.125861,0.00021917,2]
[328586334,1717573850511,-500.0,0.00021917,2]
[328586335,1717573850521,-500.0,0.00021917,2]
[328586336,1717573850530,-225.125861,0.00021917,2]
[328586337,1717573850542,-225.125861,0.00021917,2]
[328586338,1717573850551,-225.12585613,0.00021917,2]
[328586339,1717573850561,-500.0,0.00021917,2]
[328586340,1717573850645,-500.0,0.00021917,2]
[328586341,1717573850656,-3017.64,0.00021917,2]
[328586342,1717573850665,-500.0,0.00021917,2]
[328586343,1717573850674,-500.0,0.00021917,2]
[328586344,1717573850687,-500.0,0.00021917,2]
[328586345,1717573850696,-500.0,0.00021917,2]
[328586346,1717573850706,-500.0,0.00021917,2]
[328586347,1717573850715,-500.0,0.00021917,2]
[328586348,1717573850727,-500.0,0.00021917,2]
[328586349,1717573850736,-418.719781,0.00021917,2]
[328586350,1717573850748,-418.719781,0.00021917,2]
[328586351,1717573850758,-418.719781,0.00021917,2]
[328586352,1717573850768,-500.0,0.00021917,2]
[328586353,1717573850776,-504.80154156,0.00021917,2]
[328586354,1717573850786,-418.719781,0.00021917,2]
[328586355,1717573850794,-500.0,0.00021917,2]
[328586356,1717573850805,-418.719781,0.00021917,2]
[328586357,1717573850814,-418.719784,0.00021917,2]
[328586358,1717573850823,-511.5469232,0.00021917,2]
[328586359,1717573850832,-517.60392565,0.00021917,2]
[328586360,1717573850841,-674.07,0.00021917,2]
[328586361,1717573850852,-500.0,0.00021917,2]
[328586362,1717573850861,-398.699871,0.00021917,2]
[328586363,1717573850870,-398.699871,0.00021917,2]
[328586364,1717573850879,-398.699871,0.00021917,2]
[328586365,1717573850890,-398.699871,0.00021917,2]
[328586366,1717573850899,-500.0,0.00021917,2]
[328586367,1717573850907,-398.699871,0.00021917,2]
[328586368,1717573850916,-398.699863,0.00021917,2]
[328586369,1717573850926,-500.0,0.00021917,2]
[328586370,1717573850935,-500.0,0.00021917,2]
[328586371,1717573850944,-500.0,0.00021917,2]
[328586372,1717573850953,-911.66,0.00021917,2]
[328586373,1717573850962,-2665.97,0.00021917,2]
[328586374,1717573850971,-500.0,0.00021917,2]
[328586375,1717573850980,-506.34722405,0.00021917,2]
[328586376,1717573850989,-501.8308752,0.00021917,2]
[328586377,1717573850998,-552.13,0.00021917,2]
[328586378,1717573851007,-500.0,0.00021917,2]
[328586379,1717573851016,-500.0,0.00021917,2]
[328586380,1717573851025,-500.0,0.00021917,2]
[328586381,1717573851037,-500.0,0.00021917,2]
[328586382,1717573851046,-500.0,0.00021917,2]
[328586383,1717573851056,-261.823506,0.00021917,2]
[328586384,1717573851065,-261.823506,0.00021917,2]
[328586385,1717573851075,-261.823506,0.00021917,2]
[328586386,1717573851084,-261.823506,0.00021917,2]
[328586387,1717573851094,-500.0,0.00021917,2]
[328586388,1717573851103,-500.0,0.00021917,2]
[328586389,1717573851113,-500.0,0.00021917,2]
[328586390,1717573851122,-500.0,0.00021917,2]
[328586391,1717573851131,-166.666666,0.00021918,2]
[328586392,1717573851142,-151.0,0.00021918,2]
[328586393,1717573851151,-151.606434,0.00021918,2]
[328586394,1717573851160,-1000.0,0.00022,10]
[328586395,1717573851170,-1024.6702274,0.00022,2]
[328586396,1717573851179,-368.0,0.00022,2]
[328586397,1717573851189,-270.0,0.000221,2]
[328586398,1717573851198,-171.678656,0.000221,2]
[328586399,1717573851206,-1000.0,0.000221,2]
[328586400,1717573851216,-182.32006056,0.00022168,2]
[328586401,1717573851225,-972.31,0.0002219,2]
[328586402,1717573851234,-500.0,0.00022191,2]
[328586403,1717573851243,-500.0,0.00022191,2]
[328586404,1717573851253,-500.0,0.00022191,2]
[328586405,1717573851262,-500.0,0.00022191,2]
[328586406,1717573851271,-500.0,0.00022191,2]
[328586407,1717573851280,-500.0,0.00022191,2]
[328586408,1717573851289,-500.0,0.00022191,2]
[328586409,1717573851298,-500.0,0.00022191,2]
[328586410,1717573851307,-505.43298193,0.00022191,2]
[328586411,1717573851317,-500.0,0.00022191,2]
[328586412,1717573851326,-500.0,0.00022191,2]
[328586413,1717573851335,-500.0,0.00022191,2]
[328586414,1717573851344,-500.0,0.00022191,2]
[328586415,1717573851353,-500.0,0.00022191,2]
[328586416,1717573851362,-500.0,0.00022191,2]
[328586417,1717573851371,-500.0,0.00022191,2]
[328586418,1717573851380,-500.0,0.00022191,2]
[328586419,1717573851391,-500.0,0.00022191,2]
[328586420,1717573851400,-500.0,0.00022191,2]
[328586421,1717573851410,-500.0,0.00022191,2]
[328586422,1717573851420,-500.0,0.00022191,2]
[328586423,1717573851430,-500.0,0.00022191,2]